fUSD/lending_fUSD_20250320
["ID","MTS","AMOUNT","RATE_DAILY","PERIOD"]
[356471213,1742506121448,-900.0,0.000113,4]
[356471214,1742506121482,-1400.0,0.000114,4]
[356471215,1742506121511,-1900.0,0.000115,4]
[356471216,1742506121541,-290.33,0.00011543,2]
[356471217,1742506121569,-290.33,0.00011568,2]
[356471218,1742506121597,-290.33,0.00011592,2]
[356471219,1742506121623,-2400.0,0.000116,4]
[356471220,1742506121654,-290.33,0.00011616,2]
[356471221,1742506121680,-240.1342513,0.0001164,2]
[356471222,1742506121708,-290.33,0.0001164,2]
[356471223,1742506121736,-290.33,0.00011665,2]
[356471224,1742506121763,-290.33,0.00011689,2]
[356471225,1742506121791,-400.0,0.000117,4]
[356471226,1742506121820,-290.33,0.00011713,2]
[356471227,1742506121848,-290.33,0.00011738,2]
[356471228,1742506121875,-290.33,0.00011762,2]
[356471229,1742506121903,-290.33,0.00011786,2]
[356471230,1742506121933,-400.0,0.000118,4]
[356471231,1742506121963,-290.33,0.00011811,2]
[356471232,1742506121993,-290.33,0.00011835,2]
[356471233,1742506122023,-290.33,0.00011859,2]
[356471234,1742506122052,-290.33,0.00011883,2]
[356471235,1742506122081,-400.0,0.000119,4]
[356471236,1742506122106,-1578.7906,0.000119,2]
[356471237,1742506122133,-12686.8927406,0.000119,2]
[356471238,1742506122161,-8862.63419463,0.00011904,2]
[356471239,1742506158435,669.23405,0.0001688,17]
[356471240,1742506158744,669.23405,0.0001938,22]
[356471259,1742506231736,-1064.68,0.00010997,2]
[356471261,1742506231745,-150.0,0.00011041,2]
[356471263,1742506231755,-200.0,0.00011086,2]
[356471264,1742506231764,-167.54003,0.00011093,2]
[356471265,1742506231805,-132.45997,0.00011093,2]
[356471266,1742506231815,-190.16,0.00011094,2]
[356471267,1742506231825,-1542.83820321,0.00011094,2]
[356471268,1742506232275,-76.61507075,0.00011094,2]
[356471269,1742506232289,-845.20436,0.00011094,2]
[356471270,1742506232311,-12255.20306442,0.00011094,2]
[356471271,1742506232328,-9180.13930162,0.00011094,2]
[356471272,1742506232338,-1645.67,0.00011094,2]
[356471273,1742506232347,-200.0,0.000112,4]
[356471274,1742506232356,-500.0,0.000113,4]
[356471275,1742506232365,-800.0,0.000114,4]
[356471276,1742506232375,-1100.0,0.000115,4]
[356471277,1742506232384,-1400.0,0.000116,4]
[356471278,1742506232393,-420.4463636,0.0001164,2]
[356471279,1742506232403,-200.0,0.000117,4]
[356471280,1742506232412,-200.0,0.000118,4]
[356471281,1742506232420,-669.23405,0.0001188,6]
[356471282,1742506232430,-150.0,0.00011899,2]
[356471283,1742506232439,-385.1415,0.000119,2]
[356471284,1742506232451,-200.0,0.000119,4]
[356471285,1742506232460,-3824.25854589,0.00011904,2]
[356471286,1742506232470,-290.33,0.00011908,2]
[356471287,1742506232479,-12686.89274052,0.00011908,2]
[356471288,1742506232489,-12686.89274052,0.00011912,2]
[356471289,1742506232498,-12686.89274052,0.00011916,2]
[356471290,1742506232508,-12686.89274052,0.00011921,2]
[356471291,1742506232518,-12686.89274052,0.00011925,2]
[356471292,1742506232528,-12686.89274052,0.00011929,2]
[356471293,1742506232540,-290.33,0.00011932,2]
[356471294,1742506232550,-12686.89274052,0.00011933,2]
[356471295,1742506232559,-12686.89274052,0.00011937,2]
[356471296,1742506232569,-290.33,0.00011956,2]
[356471297,1742506232578,-500.0,0.00011973,2]
[356471298,1742506232588,-290.33,0.00011981,2]
[356471299,1742506232597,-8984.3408547,0.00011997,2]
[356471300,1742506232607,-630.0,0.00012,2]
[356471301,1742506232616,-278202.64999128,0.00012,2]
[356471302,1742506232632,-420.42,0.00012,2]
[356471303,1742506237593,-175.93822646,0.00011999,2]
[356471304,1742506237602,-165.32623283,0.00012,2]
[356471305,1742506237614,-400.67376717,0.00012,2]
[356471306,1742506237623,-260.54351548,0.00012,2]
[356471307,1742506237634,-735.0921918,0.00012,2]
[356471316,1742506238047,-76.33957612,0.00012,2]
[356471317,1742506238058,-16886.75199999,0.00012,2]
[356471318,1742506238068,-3476.6,0.00012,2]
[356471319,1742506238079,-1520.0,0.00012,2]
[356471320,1742506238102,-434.26093976,0.00012,2]
[356471321,1742506238114,-289.80501746,0.00012,2]
[356471322,1742506238125,-16098.20203296,0.00012,2]
[356471323,1742506238135,-170152.54040433,0.00012,2]
[356471324,1742506238147,-659.30765269,0.00012,2]
[356471328,1742506239921,-509.26184715,0.00012,2]
[356471329,1742506239933,-25017.57107731,0.00012,2]
[356471330,1742506240205,-0.22638214,0.00012,2]
[356471332,1742506240310,-11.36862522,0.00012,2]
[356471334,1742506240335,-48727.12606253,0.00012,2]
[356471341,1742506242757,-507.0,0.00012,2]
[356471342,1742506242772,-1686097.8459606,0.00012,2]
[356471343,1742506242786,-15497706.92704899,0.00012,2]
[356471344,1742506242800,-290.33,0.00012005,2]
[356471345,1742506242813,-607.8124437,0.00012029,2]
[356471346,1742506242825,-967.3606376,0.00012037,2]
[356471347,1742506242839,-172.08,0.0001209,2]
[356471348,1742506242853,-150.0,0.00012097,2]
[356471349,1742506242867,-268.09,0.00012145,2]
[356471350,1742506242876,-420.0,0.00012189,2]
[356471351,1742506242886,-38159.48115458,0.00012286,2]
[356471352,1742506242895,-801.28,0.00012448,2]
[356471353,1742506242905,-295.52294153,0.000125,2]
[356471354,1742506242914,-1000.0,0.00012512,2]
[356471356,1742506243090,-8458.39224137,0.0001261,2]
[356471357,1742506243115,-150.0,0.00012804,2]
[356471358,1742506243125,-350.0,0.00012804,2]
[356471359,1742506243134,-255.0,0.00012982,2]
[356471360,1742506243143,-3047.19503509,0.00013,2]
[356471361,1742506243152,-348.7,0.00013157,2]
[356471362,1742506243162,-350.0,0.000132,2]
[356471363,1742506243172,-48395.80917915,0.00013368,2]
[356471364,1742506243181,-640.00282699,0.00013374,2]
[356471365,1742506243190,-587.0,0.00013393,2]
[356471366,1742506243200,-1000.0,0.000135,2]
[356471367,1742506243209,-156.71,0.00013583,2]
[356471368,1742506243220,-1959.34623101,0.00013649,2]
[356471369,1742506243230,-500.0,0.00013699,2]
[356471370,1742506243239,-31355.92,0.00013699,2]
[356471371,1742506243248,-1000.0,0.00013699,2]
[356471372,1742506243258,-1000.0,0.00013699,2]
[356471373,1742506243278,-1000.0,0.00013699,2]
[356471374,1742506243288,-1000.0,0.00013699,2]
[356471375,1742506243297,-1000.0,0.00013699,2]
[356471376,1742506243307,-1000.0,0.00013699,2]
[356471377,1742506243317,-1000.0,0.00013699,2]
[356471378,1742506243327,-1000.0,0.00013699,2]
[356471379,1742506243336,-1000.0,0.00013699,2]
[356471380,1742506243346,-1000.0,0.00013699,2]
[356471381,1742506243356,-1000.0,0.00013699,2]
[356471382,1742506243366,-1000.0,0.00013699,2]
[356471383,1742506243376,-1000.0,0.00013699,2]
[356471384,1742506243385,-1000.0,0.00013699,2]
[356471385,1742506243395,-1000.0,0.00013699,2]
[356471386,1742506243404,-1000.0,0.00013699,2]
[356471387,1742506243414,-1000.0,0.00013699,2]
[356471388,1742506243423,-1000.0,0.00013699,2]
[356471389,1742506243433,-1000.0,0.00013699,2]
[356471390,1742506243444,-1000.0,0.00013699,2]
[356471391,1742506243455,-1000.0,0.00013699,2]
[356471392,1742506243465,-1000.0,0.00013699,2]
[356471393,1742506243474,-1000.0,0.00013699,2]
[356471394,1742506243484,-1000.0,0.00013699,2]
[356471395,1742506243493,-1000.0,0.00013699,2]
[356471396,1742506243502,-1000.0,0.00013699,2]
[356471397,1742506243511,-1000.0,0.00013699,2]
[356471398,1742506243520,-1000.0,0.00013699,2]
[356471399,1742506243529,-1000.0,0.00013699,2]
[356471400,1742506243538,-1000.0,0.00013699,2]
[356471401,1742506243547,-1000.0,0.00013699,2]
[356471402,1742506243557,-1000.0,0.00013699,2]
[356471403,1742506243568,-1000.0,0.00013699,2]
[356471404,1742506243577,-1000.0,0.00013699,2]
[356471405,1742506243587,-1000.0,0.00013699,2]
[356471406,1742506243597,-1000.0,0.00013699,2]
[356471407,1742506243607,-1000.0,0.00013699,2]
[356471408,1742506243616,-1000.0,0.00013699,2]
[356471409,1742506243626,-1000.0,0.00013699,2]
[356471410,1742506243636,-1000.0,0.00013699,2]
[356471411,1742506243646,-1000.0,0.00013699,2]
[356471412,1742506243655,-1000.0,0.00013699,2]
[356471413,1742506243665,-631.0,0.00013699,2]
[356471414,1742506243675,-6007.64,0.00013699,2]
[356471415,1742506243684,-27477.23,0.00013699,2]
[356471416,1742506243694,-200.0,0.00013699,2]
[356471417,1742506243703,-15394.02,0.00013699,2]
[356471418,1742506243713,-708.68,0.00013699,2]
[356471419,1742506243722,-500.0,0.00013699,2]
[356471420,1742506243731,-500.0,0.00013699,2]
[356471421,1742506243741,-500.0,0.00013699,2]
[356471422,1742506243750,-524.18880448,0.00013699,2]
[356471423,1742506243759,-500.4244151,0.00013699,2]
[356471424,1742506243768,-500.0,0.00013699,2]
[356471425,1742506243778,-626.37383213,0.00013699,2]
[356471426,1742506243787,-317.35003382,0.00013699,2]
[356471427,1742506243796,-160.32601429,0.00013699,2]
[356471428,1742506243806,-161.04400461,0.00013699,2]
[356471429,1742506243815,-151.26967411,0.00013699,2]
[356471430,1742506243825,-213.24061825,0.00013699,2]
[356471431,1742506243835,-151.26967411,0.00013699,2]
[356471432,1742506243845,-420.32459879,0.00013699,2]
[356471433,1742506243854,-453.31304528,0.00013699,2]
[356471434,1742506243864,-500.0,0.00013699,2]
[356471435,1742506243874,-300.54390808,0.00013699,2]
[356471436,1742506243887,-500.0,0.00013699,2]
[356471437,1742506243898,-500.0,0.00013699,2]
[356471438,1742506243907,-160.063232,0.00013699,2]
[356471439,1742506243917,-158.41442771,0.00013699,2]
[356471440,1742506243926,-152.27146002,0.00013699,2]
[356471441,1742506243936,-312.88613171,0.00013699,2]
[356471442,1742506243947,-500.0,0.00013699,2]
[356471443,1742506243957,-646.83157923,0.00013699,2]
[356471444,1742506243968,-603.94208693,0.00013699,2]
[356471445,1742506243977,-500.0,0.00013699,2]
[356471446,1742506243987,-500.43447289,0.00013699,2]
[356471447,1742506243997,-151.0,0.00013699,2]
[356471448,1742506244006,-151.0,0.00013699,2]
[356471449,1742506244015,-151.0,0.00013699,2]
[356471450,1742506244027,-151.0,0.00013699,2]
[356471451,1742506244037,-151.0,0.00013699,2]
[356471452,1742506244046,-151.0,0.00013699,2]
[356471453,1742506244055,-151.0,0.00013699,2]
[356471454,1742506244065,-151.0,0.00013699,2]
[356471455,1742506244074,-151.0,0.00013699,2]
[356471456,1742506244083,-151.0,0.00013699,2]
[356471457,1742506244092,-151.0,0.00013699,2]
[356471458,1742506244101,-151.0,0.00013699,2]
[356471459,1742506244110,-151.0,0.00013699,2]
[356471460,1742506244119,-151.0,0.00013699,2]
[356471461,1742506244132,-151.0,0.00013699,2]
[356471462,1742506244141,-151.0,0.00013699,2]
[356471463,1742506244151,-151.0,0.00013699,2]
[356471464,1742506244160,-151.0,0.00013699,2]
[356471465,1742506244170,-151.0,0.00013699,2]
[356471466,1742506244179,-151.0,0.00013699,2]
[356471467,1742506244189,-151.0,0.00013699,2]
[356471468,1742506244198,-151.0,0.00013699,2]
[356471469,1742506244208,-151.0,0.00013699,2]
[356471470,1742506244217,-151.0,0.00013699,2]
[356471471,1742506244227,-278.48205791,0.00013699,2]
[356471472,1742506244236,-500.0,0.00013699,2]
[356471473,1742506244245,-500.0,0.00013699,2]
[356471474,1742506244254,-500.0,0.00013699,2]
[356471475,1742506244264,-500.0,0.00013699,2]
[356471476,1742506244273,-500.0,0.00013699,2]
[356471477,1742506244283,-500.0,0.00013699,2]
[356471478,1742506244292,-500.0,0.00013699,2]
[356471479,1742506244301,-500.0,0.00013699,2]
[356471480,1742506244310,-500.0,0.00013699,2]
[356471481,1742506244320,-500.0,0.00013699,2]
[356471482,1742506244329,-500.0,0.00013699,2]
[356471483,1742506244338,-500.0,0.00013699,2]
[356471484,1742506244347,-511.67539164,0.00013699,2]
[356471485,1742506244356,-500.0,0.00013699,2]
[356471486,1742506244366,-500.0,0.00013699,2]
[356471487,1742506244375,-500.0,0.00013699,2]
[356471488,1742506244385,-500.0,0.00013699,2]
[356471489,1742506244394,-500.0,0.00013699,2]
[356471490,1742506244404,-500.0,0.00013699,2]
[356471491,1742506244414,-500.0,0.00013699,2]
[356471492,1742506244423,-500.0,0.00013699,2]
[356471493,1742506244432,-500.0,0.00013699,2]
[356471494,1742506244442,-500.0,0.00013699,2]
[356471495,1742506244452,-500.0,0.00013699,2]
[356471496,1742506244461,-500.0,0.00013699,2]
[356471497,1742506244471,-500.0,0.00013699,2]
[356471498,1742506244480,-500.0,0.00013699,2]
[356471499,1742506244490,-500.0,0.00013699,2]
[356471500,1742506244499,-500.0,0.00013699,2]
[356471501,1742506244509,-500.0,0.00013699,2]
[356471502,1742506244518,-500.0,0.00013699,2]
[356471503,1742506244528,-500.0,0.00013699,2]
[356471504,1742506244537,-500.0,0.00013699,2]
[356471505,1742506244546,-500.0,0.00013699,2]
[356471506,1742506244556,-500.0,0.000137,2]
[356471507,1742506244565,-1200.0,0.000137,2]
[356471508,1742506244575,-325.0,0.000137,2]
[356471509,1742506244584,-173.48,0.00013818,2]
[356471510,1742506244593,-801.28,0.00013831,2]
[356471511,1742506244603,-3982.20215989,0.00014,2]
[356471512,1742506244612,-165.58,0.00014019,2]
[356471513,1742506244622,-1000.0,0.00014076,2]
[356471514,1742506244631,-250.0,0.00014124,2]
[356471515,1742506244640,-433.0,0.0001416,2]
[356471516,1742506244649,-1015.13,0.00014206,2]
[356471517,1742506244659,-669.23405,0.0001438,11]
[356471518,1742506244668,-9900.97336768,0.0001439,2]
[356471519,1742506244678,-165.58,0.00014597,2]
[356471520,1742506244687,-348.7,0.00014619,2]
[356471521,1742506244697,-823.0,0.00014716,2]
[356471522,1742506244706,-300.0,0.00015068,2]
[356471523,1742506244716,-165.58,0.00015176,2]
[356471524,1742506244725,-801.28,0.00015214,2]
[356471525,1742506244735,-487.43015122,0.000154,2]
[356471526,1742506244745,-736.0,0.00015457,2]
[356471527,1742506244754,-1000.0,0.0001564,2]
[356471528,1742506244763,-165.58,0.00015754,2]
[356471529,1742506244772,-1253.89,0.0001588,2]
[356471530,1742506244782,-3034.06889788,0.00016,8]
[356471531,1742506244794,-27879.79987507,0.00016,2]
[356471532,1742506244803,-348.7,0.00016081,2]
[356471533,1742506244813,-1152.0,0.0001617,2]
[356471534,1742506244822,-165.58,0.00016332,2]
[356471535,1742506244831,-200.0,0.0001634,2]
[356471536,1742506244841,-11953.09,0.00016411,2]
[356471537,1742506244851,-202.36,0.00016438,2]
[356471538,1742506244860,-300.0,0.00016438,2]
[356471539,1742506244870,-1015.13,0.0001647,2]
[356471540,1742506244879,-173.48,0.00016582,2]
[356471541,1742506244889,-801.28,0.00016597,2]
[356471542,1742506244899,-188.02,0.00016712,2]
[356471543,1742506244910,-390.0,0.00016861,2]
[356471544,1742506244920,-708.68,0.00016895,2]
[356471545,1742506244930,-1000.0,0.00017204,2]
[356471546,1742506244940,-1000.0,0.00017452,2]
[356471547,1742506244958,-348.7,0.00017543,2]
[356471548,1742506244968,-893.0,0.00017768,2]
[356471549,1742506244977,-600.0,0.00017808,2]
[356471550,1742506244987,-1141.19122485,0.00018,2]
[356471551,1742506244997,-200.0,0.00018082,2]
[356471552,1742506245007,-1706.6090723,0.000181,2]
[356471553,1742506245016,-158.65,0.000186,2]
[356471554,1742506245027,-1015.13,0.00018734,2]
[356471555,1742506245038,-1000.0,0.00018768,2]
[356471556,1742506245048,-5204.73913914,0.00019,2]
[356471557,1742506245058,-1000.0,0.0001902,2]
[356471558,1742506245067,-151.0,0.00019178,2]
[356471559,1742506245078,-290.513564,0.00019178,2]
[356471560,1742506245087,-151.0,0.00019178,2]
[356471561,1742506245096,-151.26403,0.00019178,2]
[356471562,1742506245105,-151.0,0.00019178,2]
[356471563,1742506245115,-229.334799,0.00019178,2]
[356471564,1742506245124,-229.334799,0.00019178,2]
[356471565,1742506245134,-316.412486,0.00019178,2]
[356471566,1742506245143,-316.412486,0.00019178,2]
[356471567,1742506245152,-151.0,0.00019178,2]
[356471568,1742506245161,-151.0,0.00019178,2]
[356471569,1742506245171,-3243.29,0.00019178,2]
[356471570,1742506245180,-1000.0,0.00019178,2]
[356471571,1742506245190,-1000.0,0.00019178,2]
[356471572,1742506245199,-1000.79591112,0.00019178,2]
[356471573,1742506245209,-1000.0,0.00019178,2]
[356471574,1742506245220,-245.99334606,0.00019178,2]
[356471575,1742506245230,-1000.0,0.00019178,2]
[356471576,1742506245239,-433.20045782,0.00019178,2]
[356471577,1742506245248,-571.86868611,0.00019178,2]
[356471578,1742506245258,-1000.24536163,0.00019178,2]
[356471579,1742506245268,-354.0,0.000192,2]
[356471580,1742506245278,-943.0,0.000192,2]
[356471581,1742506245287,-325.59284086,0.000192,2]
[356471582,1742506245296,-9298.06,0.00019339,2]
[356471583,1742506245306,-150.99,0.00019339,2]
[356471584,1742506245316,-3559.78,0.00019339,2]
[356471585,1742506245325,-8106.43,0.00019339,2]
[356471586,1742506245335,-265.35,0.00019339,2]
[356471587,1742506245344,-483.0,0.00019339,2]
[356471588,1742506245353,-3302.24491178,0.0001961,2]
[356471589,1742506245363,-188.02,0.00019658,2]
[356471590,1742506245373,-3015.17527357,0.0001987,2]
[356471591,1742506245381,-514.0,0.0001997,2]
[356471592,1742506245391,-32704.88964888,0.00019999,2]
[356471593,1742506245400,-151.0,0.00019999,2]
[356471594,1742506245410,-151.0,0.00019999,2]
[356471595,1742506245420,-151.0,0.00019999,2]
[356471596,1742506245430,-151.0,0.00019999,2]
[356471597,1742506245439,-151.0,0.00019999,2]
[356471598,1742506245449,-2852.858928,0.00019999,2]
[356471599,1742506245459,-151.0,0.00019999,2]
[356471600,1742506245469,-153.650515,0.00019999,2]
[356471601,1742506245482,-3950.0,0.0002,2]
[356471602,1742506245626,-1244.29005844,0.0002,2]
[356471603,1742506245636,-11772.09586853,0.0002,2]
[356471604,1742506245646,-1003.97126295,0.0002,2]
[356471605,1742506245655,-1732.73856378,0.0002,2]
[356471606,1742506245665,-1000.0,0.0002,4]
[356471607,1742506245674,-1000.0,0.0002,4]
[356471608,1742506245683,-299.42002204,0.0002,2]
[356471609,1742506245692,-10000.0,0.0002,2]
[356471610,1742506245701,-1473.99076248,0.0002,2]
[356471611,1742506245711,-4277.85941463,0.0002,2]
[356471612,1742506245721,-50000.0,0.0002,2]
[356471613,1742506245730,-7500.0,0.0002,2]
[356471614,1742506245740,-3847.19706403,0.0002,2]
[356471615,1742506245750,-45896.92238539,0.0002,2]
[356471616,1742506245759,-918.209182,0.0002,2]
[356471617,1742506245768,-151.0,0.0002,2]
[356471618,1742506245777,-151.0,0.0002,2]
[356471619,1742506245786,-151.0,0.0002,2]
[356471620,1742506245796,-151.0,0.0002,2]
[356471621,1742506245805,-151.0,0.0002,2]
[356471623,1742506245814,-151.0,0.0002,2]
[356471625,1742506245823,-151.0,0.0002,2]
[356471626,1742506245831,-151.0,0.0002,2]
[356471627,1742506245841,-151.0,0.0002,2]
[356471628,1742506245850,-151.0,0.0002,2]
[356471629,1742506245859,-151.0,0.0002,2]
[356471630,1742506245867,-151.0,0.0002,2]
[356471631,1742506245877,-151.0,0.0002,2]
[356471632,1742506245886,-151.0,0.0002,2]
[356471633,1742506245895,-163.293184,0.0002,2]
[356471634,1742506245905,-163.293184,0.0002,2]
[356471635,1742506245914,-151.0,0.0002,2]
[356471636,1742506245923,-151.0,0.0002,2]
[356471637,1742506245933,-151.0,0.0002,2]
[356471638,1742506245944,-151.0,0.0002,2]
[356471639,1742506245955,-151.0,0.0002,2]
[356471640,1742506245964,-151.0,0.0002,2]
[356471641,1742506245973,-151.0,0.0002,2]
[356471642,1742506245982,-151.0,0.0002,2]
[356471643,1742506245993,-270.350595,0.0002,2]
[356471644,1742506246002,-151.0,0.0002,2]
[356471645,1742506246011,-151.0,0.0002,2]
[356471646,1742506246021,-151.0,0.0002,2]
[356471647,1742506246032,-151.0,0.0002,2]
[356471648,1742506246041,-151.0,0.0002,2]
[356471649,1742506246050,-151.0,0.0002,2]
[356471650,1742506246060,-283.611849,0.0002,2]
[356471651,1742506246070,-151.0,0.0002,2]
[356471652,1742506246080,-283.611849,0.0002,2]
[356471653,1742506246090,-151.0,0.0002,2]
[356471654,1742506246100,-151.0,0.0002,2]
[356471655,1742506246109,-393.045796,0.0002,2]
[356471656,1742506246120,-393.045796,0.0002,2]
[356471657,1742506246129,-151.453873,0.0002,2]
[356471658,1742506246139,-151.453873,0.0002,2]
[356471659,1742506246149,-151.0,0.0002,2]
[356471660,1742506246158,-151.0,0.0002,2]
[356471661,1742506246167,-151.0,0.0002,2]
[356471662,1742506246176,-151.0,0.0002,2]
[356471663,1742506246186,-204.7922,0.0002,2]
[356471664,1742506246196,-151.0,0.0002,2]
[356471665,1742506246207,-151.852213,0.0002,2]
[356471666,1742506246216,-151.0,0.0002,2]
[356471667,1742506246226,-152.787327,0.0002,2]
[356471668,1742506246235,-152.27705,0.0002,2]
[356471669,1742506246244,-151.0,0.0002,2]
[356471670,1742506246254,-151.0,0.0002,2]
[356471671,1742506246264,-151.0,0.0002,2]
[356471672,1742506246274,-151.0,0.0002,2]
[356471673,1742506246283,-151.0,0.0002,2]
[356471674,1742506246293,-160.687897,0.0002,2]
[356471675,1742506246302,-151.0,0.0002,2]
[356471676,1742506246312,-550.594901,0.0002,2]
[356471678,1742506246321,-151.0,0.0002,2]
[356471680,1742506246331,-550.594901,0.0002,2]
[356471681,1742506246340,-151.0,0.0002,2]
[356471682,1742506246350,-151.0,0.0002,2]
[356471683,1742506246360,-151.0,0.0002,2]
[356471684,1742506246370,-151.0,0.0002,2]
[356471685,1742506246379,-153.487853,0.0002,2]
[356471686,1742506246392,-153.487853,0.0002,2]
[356471687,1742506246402,-176.954312,0.0002,2]
[356471688,1742506246411,-176.954312,0.0002,2]
[356471689,1742506246421,-151.0,0.0002,2]
[356471690,1742506246432,-151.0,0.0002,2]
[356471691,1742506246442,-151.0,0.0002,2]
[356471692,1742506246451,-151.0,0.0002,2]
[356471693,1742506246461,-151.0,0.0002,2]
[356471694,1742506246472,-151.0,0.0002,2]
[356471695,1742506246482,-151.0,0.0002,2]
[356471696,1742506246491,-151.0,0.0002,2]
[356471697,1742506246501,-151.0,0.0002,2]
[356471698,1742506246511,-151.0,0.0002,2]
[356471699,1742506246521,-151.0,0.0002,2]
[356471700,1742506246531,-229.334799,0.0002,2]
[356471701,1742506246541,-229.334799,0.0002,2]
[356471702,1742506246551,-316.412486,0.0002,2]
[356471703,1742506246561,-316.412486,0.0002,2]
[356471704,1742506246571,-151.0,0.0002,2]
[356471705,1742506246580,-153.264031,0.0002,2]
[356471706,1742506246590,-151.0,0.0002,2]
[356471707,1742506246603,-151.0,0.0002,2]
[356471708,1742506246612,-151.0,0.0002,2]
[356471709,1742506246622,-252.85410595,0.0002,2]
[356471710,1742506246632,-242.31246357,0.0002,2]
[356471711,1742506246641,-161.54164238,0.0002,2]
[356471712,1742506246650,-151.0,0.0002,2]
[356471713,1742506246660,-151.0,0.0002,2]
[356471714,1742506246669,-151.0,0.0002,2]
[356471715,1742506246679,-151.0,0.0002,2]
[356471716,1742506246688,-151.0,0.0002,2]
[356471717,1742506246698,-151.0,0.0002,2]
[356471718,1742506246708,-151.0,0.0002,2]
[356471719,1742506246718,-151.0,0.0002,2]
[356471720,1742506246727,-151.0,0.0002,2]
[356471721,1742506246738,-151.0,0.0002,2]
[356471722,1742506246747,-2000.0,0.0002,4]
[356471723,1742506246756,-151.0,0.0002,2]
[356471724,1742506246766,-151.0,0.0002,2]
[356471725,1742506246776,-161.198674,0.0002,2]
[356471726,1742506246785,-161.198674,0.0002,2]
[356471727,1742506246795,-340.01,0.0002,2]
[356471728,1742506246804,-340.01,0.0002,2]
[356471729,1742506246813,-340.01,0.0002,2]
[356471730,1742506246823,-340.01,0.0002,2]
[356471731,1742506246832,-340.01,0.0002,2]
[356471732,1742506246842,-340.01,0.0002,2]
[356471733,1742506246851,-340.01,0.0002,2]
[356471734,1742506246861,-340.01,0.0002,2]
[356471735,1742506246870,-340.01,0.0002,2]
[356471736,1742506246880,-340.01,0.0002,2]
[356471737,1742506246889,-340.01,0.0002,2]
[356471738,1742506246899,-340.01,0.0002,2]
[356471739,1742506246908,-340.01,0.0002,2]
[356471740,1742506246917,-340.01,0.0002,2]
[356471741,1742506246927,-340.01,0.0002,2]
[356471742,1742506246936,-340.01,0.0002,2]
[356471743,1742506246949,-340.01,0.0002,2]
[356471744,1742506246958,-340.01,0.0002,2]
[356471745,1742506246968,-340.01,0.0002,2]
[356471746,1742506246978,-340.01,0.0002,2]
[356471747,1742506246989,-340.01,0.0002,2]
[356471748,1742506246999,-340.01,0.0002,2]
[356471749,1742506247009,-340.01,0.0002,2]
[356471750,1742506247020,-340.01,0.0002,2]
[356471751,1742506247030,-340.01,0.0002,2]
[356471752,1742506247039,-340.01,0.0002,2]
[356471753,1742506247048,-340.01,0.0002,2]
[356471754,1742506247058,-340.01,0.0002,2]
[356471755,1742506247067,-340.01,0.0002,2]
[356471756,1742506247076,-340.01,0.0002,2]